bitfinex/quotes_SOLUSD_20260311
["timestamp","ask_amount","ask_price","bid_price","bid_amount"]
[1773203003204,1.15174396,85.897,85.876,1.17279471]
[1773203005014,1.15174396,85.897,85.878,1.17279471]
[1773203005806,1.15174396,85.897,85.88,1.17279471]
[1773203007626,1.15174396,85.908,85.88,1.17279471]
[1773203007815,1.15174396,85.913,85.891,1.17279471]
[1773203011114,11.63981748,85.912,85.892,1.17279471]
[1773203011428,1.15174396,85.911,85.892,1.17279471]
[1773203013534,1.15174396,85.909,85.892,1.17279471]
[1773203014521,1.15174396,85.909,85.881,1.17279471]
[1773203015834,1.15174396,85.907,85.881,1.17279471]
[1773203016919,1.1732321,85.905,85.883,1.07929274]
[1773203017119,1.1732321,85.905,85.882,11.64388346]
[1773203017422,1.1732321,85.905,85.877,1.07929274]
[1773203019543,1.1732321,85.903,85.877,1.07929274]
[1773203024328,1.1732321,85.901,85.881,1.07929274]
[1773203025223,11.64117249,85.902,85.881,1.07929274]
[1773203027222,11.63886916,85.919,85.891,1.07929274]
[1773203029259,3.12281695,85.92,85.891,1.07929274]
[1773203029260,1.1732321,85.916,85.891,1.07929274]
[1773203032051,1.09790797,85.914,85.891,1.07929274]
[1773203032345,1.09790797,85.909,85.891,1.07929274]
[1773203032751,1.09790797,85.909,85.884,1.15995165]
[1773203035142,1.09790797,85.924,85.891,1.15995165]
[1773203039256,1.09790797,85.922,85.893,1.15995165]
[1773203040646,1.09790797,85.922,85.892,11.64252782]
[1773203040647,1.09790797,85.922,85.901,1.15995165]
[1773203041049,12.7362353,85.923,85.901,1.15995165]
[1773203042134,1.09790797,85.922,85.901,1.15995165]
[1773203043458,1.09790797,85.922,85.903,1.15995165]
[1773203045455,11.63859824,85.921,85.903,1.15995165]
[1773203047564,1.09790797,85.928,85.905,1.15995165]
[1773203050165,1.09790797,85.926,85.905,1.15995165]
[1773203052058,1.09790797,85.926,85.907,1.15995165]
[1773203052252,11.63778556,85.927,85.907,1.15995165]
[1773203053061,12.73569353,85.927,85.907,1.15995165]
[1773203053644,0.1,85.93,85.911,1.15995165]
[1773203054567,1.19790797,85.93,85.911,1.15995165]
[1773203057257,1.09790797,85.928,85.911,1.15995165]
[1773203057657,1.09790797,85.928,85.89,32.2287143]
[1773203057658,4.86175685,85.964,85.912,1.15995165]
[1773203057859,0.1,85.99,85.912,1.15995165]
[1773203057860,1.20356584,85.988,85.95,3.12174121]
[1773203058075,1.20356584,85.979,85.951,54.75976923]
[1773203059191,1.20356584,85.969,85.93,3.12174121]
[1773203060386,1.20356584,85.969,85.931,40.73035341]
[1773203060686,1.20356584,85.969,85.94,3.12174121]
[1773203062582,1.20356584,85.969,85.941,11.63588973]
[1773203062782,1.20356584,85.969,85.931,29.09310958]
[1773203062783,1.20356584,85.959,85.932,11.63710841]
[1773203065572,1.20356584,85.959,85.932,11.66076907]
[1773203065884,1.20356584,85.959,85.932,11.63710841]
[1773203066186,1.20356584,85.959,85.933,0.02366066]
[1773203069489,1.20356584,85.959,85.94,3.12174121]
[1773203070095,1.20356584,85.959,85.937,0.03100811]
[1773203072581,1.20356584,85.959,85.94,3.12174121]
[1773203073194,1.20356584,85.959,85.94,3.16215922]
[1773203074889,1.20356584,85.959,85.941,11.63588973]
[1773203079604,1.20356584,85.959,85.941,11.69386883]
[1773203080506,1.20356584,85.959,85.941,11.63588973]
[1773203082811,0.1,85.99,85.951,1.14396714]
[1773203083105,0.1,85.99,85.971,1.14396714]
[1773203083313,0.1,85.99,85.973,1.14396714]
[1773203084410,0.1,85.99,85.972,11.63169403]
[1773203084792,1.16111805,85.989,85.972,11.63169403]
[1773203086922,0.2650527,85.996,85.981,1.14396714]
[1773203088523,1.42617075,85.996,85.981,12.77432721]
[1773203092514,1.42617075,85.996,85.981,11.63036007]
[1773203093098,1.42617075,85.996,85.981,12.81312374]
[1773203095023,1.50668661,85.996,85.982,1.18276367]
[1773203097039,0.1,86.0,85.983,1.18276367]
[1773203097208,2.47215037,104.87,85.987,1.18276367]
[1773203097209,3.12174121,86.02,85.987,1.18276367]
[1773203098819,11.62533858,86.019,85.988,11.6295297]
[1773203099128,1.24163391,86.018,85.989,1.18276367]
[1773203100614,1.24163391,86.018,85.991,1.18276367]
[1773203100810,1.24163391,86.018,85.993,1.18276367]
[1773203101526,1.24163391,86.016,85.992,11.62898874]
[1773203101725,1.24163391,86.009,85.974,1.18276367]
[1773203102432,3.12174121,86.01,85.961,1.18276367]
[1773203102433,1.24163391,85.989,85.961,1.18276367]
[1773203104732,1.24163391,85.989,85.971,1.18276367]
[1773203105133,0.14216157,86.008,85.971,1.18276367]
[1773203105134,1.38379548,86.003,85.971,1.18276367]
[1773203105317,1.38379548,86.003,85.981,1.18276367]
[1773203105522,1.24163391,86.013,85.991,1.18276367]
[1773203106828,1.24163391,86.013,85.993,1.18276367]
[1773203107738,1.24163391,86.009,85.992,10.44075906]
[1773203107924,1.24163391,86.009,85.982,11.63034123]
[1773203109740,1.24163391,86.009,85.971,29.07951668]
[1773203109741,1.24163391,86.007,85.975,11.63128816]
[1773203110233,1.24163391,86.007,85.976,1.18276367]
[1773203112348,1.24163391,86.007,85.978,1.18276367]
[1773203113651,1.24163391,86.007,85.98,1.18276367]
[1773203115141,1.24163391,86.007,85.981,12.81324017]
[1773203115333,1.24163391,86.007,85.982,1.18276367]
[1773203117247,1.24163391,86.007,85.983,12.81296964]
[1773203118750,1.24163391,86.007,85.983,11.63020597]
[1773203119043,1.24163391,86.007,85.984,1.18276367]
[1773203119544,1.16434003,85.999,85.965,1.27456989]
[1773203119727,1.16434003,85.989,85.967,1.27456989]
[1773203123470,1.16434003,85.987,85.962,1.27456989]
[1773203125563,1.16434003,85.987,85.971,1.27456989]
[1773203127059,1.16434003,85.998,85.971,1.27456989]
[1773203127650,1.16434003,85.998,85.973,1.27456989]
[1773203128562,1.16434003,85.996,85.973,1.27456989]
[1773203130762,1.16434003,85.994,85.973,1.27456989]
[1773203132163,1.16434003,85.994,85.974,11.63142345]
[1773203132369,1.16434003,85.994,85.974,12.90599334]
[1773203132568,1.16434003,86.017,85.981,1.27456989]
[1773203132768,1.16434003,86.017,85.991,1.27456989]
[1773203133873,1.16434003,86.016,85.993,1.27456989]
[1773203136275,1.16434003,86.014,85.994,12.90328817]
[1773203136474,1.16434003,86.014,85.995,1.27456989]
[1773203136681,1.16434003,86.019,85.995,1.27456989]
[1773203137960,1.19089481,86.017,85.997,1.25256427]
[1773203140371,1.19089481,86.015,85.992,1.25256427]
[1773203141870,1.19089481,86.015,85.994,1.25256427]
[1773203144072,0.14216157,86.029,85.996,1.25256427]
[1773203144278,1.33305638,86.029,85.996,1.25256427]
[1773203144583,1.19089481,86.029,86.001,1.25256427]
[1773203144766,1.19089481,86.035,86.01,3.1165838]
[1773203145079,1.19089481,86.049,86.021,1.25256427]
[1773203146162,1.19089481,86.047,86.023,1.25256427]
[1773203148070,1.19089481,86.052,86.025,1.25256427]
[1773203148385,1.19089481,86.052,86.031,1.25256427]
[1773203148579,1.19089481,86.057,86.031,1.25256427]
[1773203148884,103.8,86.087,86.024,40.68632009]
[1773203148885,1.19089481,86.084,86.052,1.25256427]
[1773203149180,3.1165838,86.09,86.06,1.25256427]
[1773203149397,11.61453675,86.099,86.061,1.25256427]
[1773203149577,11.61453675,86.099,86.04,3.1165838]
[1773203149578,14.83105014,86.1,86.07,3.1165838]
[1773203149786,14.83105014,86.1,86.071,1.30469844]
[1773203150569,0.1,86.1,86.073,1.30469844]
[1773203150971,0.1,86.1,86.08,3.1165838]
[1773203151176,0.1,86.1,86.081,1.30469844]
[1773203152485,0.14216157,86.122,86.07,3.1165838]
[1773203152486,1.27414033,86.137,86.091,1.30469844]
[1773203152786,1.27414033,86.137,86.111,1.30469844]
[1773203153089,11.60979961,86.135,86.111,1.30469844]
[1773203153470,1.27414033,86.137,86.111,1.30469844]
[1773203153689,11.60865108,86.143,86.111,1.30469844]
[1773203154375,1.27414033,86.142,86.111,1.30469844]
[1773203154775,1.27414033,86.142,86.113,1.30469844]
[1773203155090,1.27414033,86.139,86.113,1.30469844]
[1773203157088,1.27414033,86.137,86.113,1.30469844]
[1773203158694,1.27414033,86.129,86.099,1.30469844]
[1773203158884,1.27414033,86.129,86.101,1.30469844]
[1773203159388,1.27414033,86.127,86.101,1.30469844]
[1773203161695,1.27414033,86.143,86.111,1.30469844]
[1773203162281,11.60923557,86.139,86.111,1.30469844]
[1773203162480,1.27414033,86.138,86.111,1.30469844]
[1773203163679,11.60860429,86.143,86.111,12.91758532]
[1773203163988,12.88274462,86.143,86.112,1.30469844]
[1773203164495,11.60860429,86.143,86.121,1.30469844]
[1773203165498,52.32,86.144,86.121,1.30469844]
[1773203165683,11.60604442,86.162,86.132,1.30469844]
[1773203166294,1.27414033,86.161,86.132,1.30469844]
[1773203168079,1.27414033,86.149,86.12,3.1165838]
[1773203168301,1.27414033,86.149,86.111,1.30469844]
[1773203168503,1.27414033,86.149,86.101,11.61426696]
[1773203168504,1.27414033,86.129,86.1,3.1165838]
[1773203169506,3.1165838,86.13,86.1,3.1165838]
[1773203169507,1.27414033,86.127,86.1,3.1165838]
[1773203170689,1.27414033,86.125,86.1,4.42128224]
[1773203174411,1.27414033,86.123,86.1,3.1165838]
[1773203175084,1.27414033,86.119,86.09,3.1165838]
[1773203175584,1.27414033,86.119,86.091,1.30469844]
[1773203176312,1.27414033,86.117,86.091,1.30469844]
[1773203176819,1.27414033,86.117,86.1,3.10840683]
[1773203177601,1.27414033,86.117,86.098,1.30469844]
[1773203178309,1.27414033,86.117,86.1,1.30469844]
[1773203179318,1.27414033,86.115,86.095,11.61507233]
[1773203179495,1.27414033,86.115,86.094,1.30469844]
[1773203179915,12.95915369,86.121,86.096,1.27047232]
[1773203180121,1.34753892,86.138,86.111,1.27047232]
[1773203180504,1.34753892,86.137,86.111,1.27047232]
[1773203182319,11.60954769,86.136,86.111,1.27047232]
[1773203182619,1.34753892,86.135,86.111,1.27047232]
[1773203184197,12.95655108,86.14,86.112,1.27047232]
[1773203184418,12.95655108,86.14,86.114,1.27047232]
[1773203184813,0.14216157,86.162,86.114,1.27047232]
[1773203184814,1.34753892,86.167,86.131,1.27047232]
[1773203185021,1.34753892,86.167,86.137,1.27047232]
[1773203185317,1.34753892,86.159,86.121,1.27047232]
[1773203185502,1.34753892,86.159,86.131,1.27047232]
[1773203186024,11.87031989,86.168,86.114,1.27047232]
[1773203186025,1.34753892,86.139,86.114,1.27047232]
[1773203186524,1.34753892,86.137,86.114,1.27047232]
[1773203187920,3.10840683,86.13,86.114,1.27047232]
[1773203188114,1.34753892,86.137,86.114,1.27047232]
[1773203188311,4.45594575,86.15,86.116,1.27047232]
[1773203188514,1.34753892,86.149,86.118,1.27047232]
[1773203188721,29.01213474,86.171,86.118,1.27047232]
[1773203188902,69.51243747,86.316,86.117,11.6121091]
[1773203188903,1.34753892,86.164,86.131,1.27047232]
[1773203192330,1.34753892,86.164,86.13,3.10840683]
[1773203192331,103.8,86.196,86.142,1.27047232]
[1773203192556,0.1,86.23,86.135,3.69383402]
[1773203192557,1.45468241,86.23,86.135,3.69383402]
[1773203192831,1.45468241,86.23,86.21,3.10840683]
[1773203193324,0.1,86.23,86.191,0.14216157]
[1773203193505,0.1,86.23,86.19,3.10840683]
[1773203193506,0.1,86.23,86.22,3.10840683]
[1773203193703,3.10840683,86.26,86.22,3.10840683]
[1773203193908,3.10840683,86.26,86.221,1.27047232]
[1773203194327,11.59299319,86.259,86.223,1.27047232]
[1773203194733,11.59299319,86.259,86.23,3.10840683]
[1773203195028,11.59299319,86.259,86.223,1.27047232]
[1773203195228,3.10840683,86.25,86.215,1.27047232]
[1773203195421,3.10840683,86.25,86.21,4.37887915]
[1773203195623,40.57547617,86.259,86.22,9.22342369]
[1773203195818,1.34753892,86.258,86.221,1.27047232]
[1773203196331,11.59447175,86.248,86.221,1.27047232]
[1773203196633,12.8393671,86.248,86.221,1.27047232]
[1773203197010,12.8393671,86.248,86.222,11.59796803]
[1773203197427,1.24489535,86.247,86.215,1.33508361]
[1773203197623,1.24489535,86.247,86.195,29.00378564]
[1773203197624,1.24489535,86.247,86.21,9.22342369]
[1773203198317,1.24489535,86.227,86.188,1.33508361]
[1773203198523,1.24489535,86.227,86.2,9.22342369]
[1773203199124,1.24489535,86.227,86.188,1.33508361]
[1773203199320,1.24489535,86.219,86.19,9.22342369]
[1773203199524,1.24489535,86.219,86.18,10.5585073]
[1773203199724,1.24489535,86.209,86.18,1.33508361]
[1773203200035,1.24489535,86.209,86.18,10.5585073]
[1773203200735,9.22342369,86.2,86.171,1.33508361]
[1773203201039,1.24489535,86.207,86.172,1.33508361]
[1773203201230,9.22342369,86.2,86.172,1.33508361]
[1773203201434,1.24489535,86.199,86.172,1.33508361]
[1773203201737,1.24489535,86.199,86.164,1.33508361]
[1773203201918,1.24489535,86.189,86.16,9.22342369]
[1773203202114,1.24489535,86.189,86.151,11.60749762]
[1773203202313,40.59948032,86.208,86.151,11.60749762]
[1773203202314,1.24489535,86.179,86.151,11.60749762]
[1773203202515,1.24489535,86.179,86.139,29.02283894]
[1773203202516,40.60042224,86.206,86.163,1.33508361]
[1773203202740,40.60042224,86.206,86.123,4.82477569]
[1773203202741,1.24489535,86.281,86.168,0.14216157]
[1773203202923,0.2650527,86.34,86.168,0.14216157]
[1773203202924,1.29562736,86.291,86.254,0.15370989]
[1773203203125,0.2650527,86.34,86.28,9.22342369]
[1773203203126,1.29562736,86.319,86.28,9.22342369]
[1773203203428,11.58403113,86.326,86.271,1.33508361]
[1773203203634,0.2650527,86.34,86.293,1.33508361]
[1773203203817,21.07067966,86.34,86.3,9.22342369]
[1773203204117,1.24489535,86.329,86.3,9.22342369]
[1773203204324,1.34489535,86.35,86.32,9.22342369]
[1773203204522,1.34489535,86.35,86.321,11.58466653]
[1773203204822,1.24489535,86.339,86.291,11.58869407]
[1773203205030,1.24489535,86.339,86.31,9.22342369]
[1773203205754,1.24489535,86.339,86.3,9.22342369]
[1773203206254,1.24489535,86.339,86.31,9.22342369]
[1773203206468,1.24489535,86.329,86.291,11.58869407]
[1773203206748,1.24489535,86.327,86.29,9.22342369]
[1773203206945,1.24489535,86.319,86.289,0.88953434]
[1773203207142,1.24489535,86.319,86.282,11.58989923]
[1773203207332,40.54304513,86.328,86.282,11.58989923]
[1773203207333,1.24489535,86.327,86.3,9.22342369]
[1773203207534,9.22342369,86.32,86.291,0.88953434]
[1773203207739,1.24489535,86.327,86.291,0.88953434]
[1773203207941,10.46831904,86.32,86.291,0.88953434]
[1773203208349,10.46831904,86.32,86.29,9.22342369]
[1773203208555,1.24489535,86.319,86.282,12.48444212]
[1773203208750,12.82996451,86.318,86.29,9.22342369]
[1773203208929,1.24489535,86.318,86.29,9.22342369]
[1773203210139,1.28118655,86.317,86.29,9.22342369]
[1773203210344,1.28118655,86.34,86.292,0.55504344]
[1773203210551,1.28118655,86.339,86.3,9.22342369]
[1773203210742,1.28118655,86.337,86.3,9.22342369]
[1773203211056,1.28118655,86.329,86.3,9.22342369]
[1773203211429,1.28118655,86.329,86.301,11.58735124]
[1773203212055,1.28118655,86.348,86.311,0.56515052]
[1773203212235,1.28118655,86.348,86.32,9.22342369]
[1773203212637,1.28118655,86.348,86.321,11.58466653]
[1773203212856,1.28118655,86.347,86.301,28.96837811]
[1773203213056,1.28118655,86.347,86.2,36.89369476]
[1773203213057,9.22342369,86.32,86.29,9.22342369]
[1773203213358,1.28118655,86.319,86.29,9.22342369]
[1773203215745,1.28118655,86.318,86.29,9.22342369]
[1773203216649,11.5850187,86.319,86.27,9.22342369]
[1773203216650,1.28118655,86.309,86.27,9.22342369]
[1773203216851,40.54735607,86.319,86.26,9.22342369]
[1773203216852,1.28118655,86.299,86.26,9.22342369]
[1773203217063,1.28118655,86.289,86.25,9.22342369]
[1773203217647,1.28118655,86.289,86.26,9.22342369]
[1773203217854,1.28118655,86.287,86.26,9.22342369]
[1773203218257,1.28118655,86.287,86.255,11.59343068]
[1773203220033,1.28118655,86.279,86.255,11.59343068]
[1773203220262,1.28118655,86.279,86.25,21.42070974]
[1773203220755,1.28118655,86.279,86.25,12.19728605]
[1773203221262,1.28118655,86.269,86.239,0.60769699]
[1773203221430,1.28118655,86.269,86.24,11.5955473]
[1773203221633,1.28118655,86.269,86.235,11.59620224]
[1773203222140,1.28118655,86.267,86.236,0.61217521]
[1773203222958,1.28118655,86.259,86.225,0.61662592]
[1773203223267,40.57124309,86.268,86.22,9.22342369]
[1773203223268,1.28118655,86.249,86.22,9.22342369]
[1773203223446,1.28118655,86.249,86.22,9.84004961]
[1773203223840,1.28118655,86.239,86.198,0.62102458]
[1773203224054,1.28118655,86.239,86.21,9.22342369]
[1773203224270,1.28118655,86.239,86.211,11.59944786]
[1773203224567,9.22342369,86.23,86.2,9.22342369]
[1773203224752,1.28118655,86.23,86.2,9.84875721]
[1773203225951,1.28118655,86.23,86.21,9.22342369]
[1773203226163,1.28118655,86.23,86.201,12.23040347]
[1773203226859,1.28118655,86.23,86.202,0.63383766]
[1773203228042,1.28118655,86.23,86.183,0.63799459]
[1773203228043,1.28118655,86.229,86.183,0.63799459]
[1773203228251,1.28118655,86.219,86.183,0.63799459]
[1773203228852,1.28118655,86.209,86.17,9.22342369]
[1773203229069,1.28118655,86.209,86.171,0.64212687]
[1773203229979,1.28118655,86.219,86.19,9.22342369]
[1773203230181,1.28118655,86.219,86.19,9.86964082]
[1773203230380,1.28118655,86.218,86.182,11.60335104]
[1773203230584,1.28118655,86.218,86.183,0.6502632]
[1773203231072,1.28118655,86.218,86.19,9.22342369]
[1773203231662,1.28118655,86.218,86.191,0.65425884]
[1773203231853,11.59778252,86.224,86.191,0.65425884]
[1773203232058,1.28118655,86.224,86.192,11.60200482]
[1773203232273,1.28118655,86.219,86.18,9.22342369]
[1773203232454,1.28118655,86.199,86.172,11.60469758]
[1773203235371,1.28118655,86.222,86.18,9.22342369]
[1773203235573,1.28118655,86.222,86.189,0.66485842]
[1773203235749,1.28118655,86.222,86.19,9.22913762]
[1773203236875,1.28118655,86.222,86.191,11.60213943]
[1773203237177,1.28118655,86.219,86.191,11.60213943]
[1773203238794,1.28118655,86.209,86.171,11.60483225]
[1773203239075,1.28118655,86.199,86.171,11.60483225]
[1773203239663,1.32248112,86.189,86.171,11.60483225]
[1773203240179,1.32248112,86.189,86.163,11.60590972]
[1773203241685,1.32248112,86.187,86.163,11.60590972]
[1773203241983,9.22913762,86.18,86.157,11.60662913]
[1773203242767,1.32248112,86.178,86.141,11.60887382]
[1773203242961,1.32248112,86.178,86.142,0.68150315]
[1773203243163,1.32248112,86.178,86.15,9.22913762]
[1773203243778,1.32248112,86.178,86.116,0.68348248]
[1773203243980,11.60375497,86.179,86.122,0.68348248]
[1773203243981,1.32248112,86.159,86.122,0.68348248]
[1773203244497,1.32248112,86.159,86.124,0.68348248]
[1773203245076,9.22913762,86.15,86.123,11.61130011]
[1773203245397,1.32248112,86.151,86.123,11.61130011]
[1773203247580,1.32248112,86.151,86.12,9.42913762]
[1773203247581,1.32248112,86.159,86.13,9.92033972]
[1773203247903,1.32248112,86.158,86.13,9.22913762]
[1773203248103,1.32248112,86.158,86.125,40.63860666]
[1773203249104,1.32248112,86.158,86.125,11.61103047]
[1773203249693,1.32248112,86.156,86.121,11.61156976]
[1773203250397,40.62351288,86.157,86.12,9.42913762]
[1773203250398,1.32248112,86.149,86.12,0.2]
[1773203250603,1.32248112,86.149,86.121,11.61156976]
[1773203254299,1.32248112,86.148,86.121,11.61156976]
[1773203257524,1.32248112,86.166,86.122,0.70906356]
[1773203257706,1.46072634,86.165,86.131,0.70906356]
[1773203258403,1.46072634,86.165,86.14,9.22913762]
[1773203259719,1.46072634,86.163,86.132,11.61008684]
[1773203260222,1.46072634,86.163,86.132,12.32406705]
[1773203260422,1.46072634,86.163,86.133,0.71398021]
[1773203260601,1.46072634,86.163,86.132,11.61008684]
[1773203261123,11.60577503,86.164,86.122,11.61143494]
[1773203261124,1.46072634,86.159,86.122,11.61143494]
[1773203262612,11.60658325,86.158,86.122,11.61143494]
[1773203262814,1.46072634,86.157,86.122,11.61143494]
[1773203264025,1.46072634,86.149,86.122,11.61143494]
[1773203266626,1.46072634,86.147,86.122,11.61143494]
[1773203268829,1.46072634,86.145,86.122,11.61143494]
[1773203269541,1.43795916,86.139,86.12,0.2]
[1773203269729,1.43795916,86.139,86.12,11.81169044]
[1773203275335,1.43795916,86.129,86.091,0.7377287]
[1773203275519,1.43795916,86.129,86.093,0.7377287]
[1773203275713,1.43795916,86.129,86.092,40.65418389]
[1773203275714,1.43795916,86.129,86.1,3.10673972]
[1773203275915,1.43795916,86.129,86.1,3.84582067]
[1773203276539,1.43795916,86.129,86.102,0.73908095]
[1773203276720,1.43795916,86.129,86.11,3.10673972]
[1773203277058,1.43795916,86.129,86.109,0.74039538]
[1773203278445,1.43795916,86.129,86.102,0.74303304]
[1773203279035,1.43795916,86.127,86.102,0.74303304]
[1773203283247,1.43795916,86.127,86.103,11.61399718]
[1773203283828,1.43795916,86.134,86.111,0.74928405]
[1773203284234,1.43795916,86.141,86.111,0.74928405]
[1773203285151,1.43795916,86.139,86.111,0.74928405]
[1773203285340,1.43795916,86.137,86.112,11.61278335]
[1773203288642,1.43795916,86.137,86.12,3.10673972]
[1773203288840,1.43795916,86.137,86.113,0.75519559]
[1773203289248,1.43795916,86.147,86.113,0.75519559]
[1773203289454,11.60820003,86.146,86.113,0.75519559]
[1773203289652,1.43795916,86.145,86.113,0.75519559]
[1773203290650,1.43795916,86.143,86.114,11.61251364]
[1773203291252,1.43795916,86.139,86.114,11.61251364]
[1773203292857,1.43795916,86.137,86.12,3.10673972]
[1773203293053,1.43795916,86.137,86.114,11.61251364]
[1773203293255,1.43795916,86.137,86.105,0.7597067]
[1773203293450,1.43795916,86.137,86.11,3.10673972]
[1773203293650,1.43795916,86.137,86.111,0.76061699]
[1773203295454,1.43795916,86.137,86.113,0.7614989]
[1773203295651,3.10673972,86.16,86.112,11.61278335]
[1773203295652,1.43795916,86.167,86.13,3.8675679]
[1773203295841,1.43795916,86.167,86.14,3.10518104]
[1773203296046,1.43795916,86.167,86.141,0.76238686]
[1773203297560,3.10518104,86.18,86.15,3.10518104]
[1773203297561,1.43795916,86.176,86.15,3.10518104]
[1773203298838,1.43795916,86.176,86.143,0.76412427]
[1773203299263,1.43795916,86.176,86.15,3.10518104]
[1773203300151,1.43795916,86.176,86.16,3.10518104]
[1773203300356,1.43795916,86.176,86.151,0.76666639]
[1773203300557,13.0421387,86.176,86.151,0.76666639]
[1773203300766,1.35054285,86.175,86.151,0.76666639]
[1773203301463,1.35054285,86.175,86.16,3.10518104]
[1773203302254,1.35054285,86.174,86.145,0.76833216]
[1773203302463,1.35054285,86.174,86.15,3.10518104]
[1773203304366,1.35054285,86.172,86.15,3.10518104]
[1773203305261,1.35054285,86.172,86.151,11.60752632]
[1773203309068,1.35054285,86.159,86.13,3.10518104]
[1773203311851,1.35054285,86.149,86.122,0.77607191]
[1773203312053,1.35054285,86.149,86.13,3.10518104]
[1773203312566,40.62304138,86.158,86.13,3.10518104]
[1773203312567,1.35054285,86.154,86.131,0.77682307]
[1773203312946,1.35054285,86.154,86.13,3.10518104]
[1773203313767,11.60725685,86.153,86.13,3.10518104]
[1773203313958,1.35054285,86.152,86.13,3.10518104]
[1773203316571,1.35054285,86.149,86.121,11.61156976]
[1773203316952,1.35054285,86.149,86.122,0.77963766]
[1773203321477,1.35054285,86.149,86.123,12.39429582]
[1773203321659,1.35054285,86.149,86.123,12.39494792]
[1773203321859,1.35054285,86.149,86.124,0.78364781]
[1773203323979,1.35054285,86.149,86.125,11.61103047]
[1773203329680,1.44278264,86.147,86.125,11.61103047]
[1773203331492,170.10518104,86.19,86.083,150.46655934]
[1773203331493,1.44278264,86.129,86.091,0.79035394]
[1773203331789,1.44278264,86.139,86.111,0.79035394]
[1773203332887,1.44278264,86.139,86.112,12.40368427]
[1773203335390,1.44278264,86.139,86.112,41.43564264]
[1773203335592,1.44278264,86.139,86.113,0.792544]
[1773203335797,1.44278264,86.139,86.12,3.10518104]
[1773203336803,1.44278264,86.147,86.121,0.79307209]
[1773203337117,1.44278264,86.158,86.121,0.79307209]
[1773203338300,1.44278264,86.156,86.123,0.7936056]
[1773203338498,1.44278264,86.156,86.13,3.89878664]
[1773203338684,1.44278264,86.156,86.13,0.7936056]
[1773203338884,1.44278264,86.156,86.123,0.79413101]
[1773203339084,1.44278264,86.149,86.123,0.79413101]
[1773203341012,1.44278264,86.149,86.13,3.10518104]
[1773203342312,1.44278264,86.219,86.14,3.10518104]
[1773203342521,11.59433732,86.249,86.19,3.10518104]
[1773203342729,11.59433732,86.249,86.22,3.10518104]
[1773203343001,0.1,86.25,86.23,3.10518104]
[1773203343184,0.1,86.25,86.221,63.60427689]
[1773203343378,0.1,86.25,86.221,65.10663521]
[1773203344506,1.44278264,86.248,86.221,65.10663521]
[1773203344705,1.44278264,86.248,86.23,3.10518104]
[1773203345889,1.44278264,86.246,86.221,52.00622496]
[1773203346604,1.44278264,86.246,86.221,49.15513531]
[1773203346782,1.44278264,86.22,86.2,3.10518104]
[1773203346982,103.66696131,86.22,86.2,3.10518104]
[1773203347185,99.62185774,86.219,86.2,3.10518104]
[1773203347403,99.62185774,86.219,86.21,3.10518104]
[1773203347600,29.9642128,86.219,86.21,3.10518104]
[1773203347803,1.44278264,86.22,86.21,3.10518104]
[1773203348200,29.9642128,86.224,86.21,3.10518104]
[1773203348396,31.40699544,86.224,86.21,3.10518104]
[1773203348997,61.87427281,86.223,86.21,3.10518104]
[1773203349204,1.44278264,86.224,86.211,11.59944786]
[1773203349697,91.83848561,86.223,86.211,11.59944786]
[1773203349896,30.63018423,86.223,86.211,11.59944786]
[1773203350099,11.59454791,86.248,86.212,1.50235832]
[1773203350290,11.59454791,86.248,86.22,3.10518104]
[1773203350784,3.10518104,86.24,86.2,3.10518104]
[1773203350988,28.98584331,86.249,86.201,1.50235832]
[1773203350989,3.10518104,86.23,86.201,1.50235832]
[1773203351283,11.59654815,86.233,86.201,1.50235832]
[1773203351494,11.59654815,86.233,86.201,13.10308521]
[1773203352124,1.44278264,86.232,86.201,13.10308521]
[1773203352313,1.44278264,86.232,86.202,1.50235832]
[1773203352906,3.10518104,86.23,86.175,1.50235832]
[1773203353105,1.44278264,86.219,86.19,3.10518104]
[1773203353610,1.44278264,86.219,86.191,1.50235832]
[1773203354200,3.10518104,86.21,86.181,1.50235832]
[1773203354402,1.44278264,86.209,86.176,11.60415893]
[1773203354709,1.44278264,86.209,86.181,1.50235832]
[1773203355306,1.44278264,86.209,86.183,1.50235832]
[1773203355708,3.10518104,86.22,86.191,1.50235832]
[1773203355709,1.44278264,86.215,86.191,1.50235832]
[1773203357509,1.44278264,86.226,86.193,1.50235832]
[1773203358393,1.44278264,86.226,86.201,1.50235832]
[1773203359712,1.44278264,86.226,86.203,1.51817989]
[1773203359915,1.44278264,86.226,86.202,11.60065891]
[1773203361117,1.44278264,86.226,86.202,13.1188388]
[1773203361314,1.49888384,86.219,86.195,11.60152398]
[1773203362808,3.10094569,86.22,86.19,3.10094569]
[1773203362809,11.59850611,86.218,86.191,11.60213943]
[1773203363015,1.49888384,86.217,86.191,11.60213943]
[1773203363217,1.49888384,86.217,86.187,11.6026722]
[1773203364204,1.49888384,86.217,86.188,1.51817989]
[1773203365123,3.10094569,86.21,86.171,1.51817989]
[1773203365307,1.49888384,86.209,86.171,1.51817989]
[1773203367019,1.49888384,86.209,86.181,1.51817989]
[1773203367905,3.10094569,86.19,86.164,1.51817989]
[1773203368416,3.10094569,86.2,86.164,1.51817989]
[1773203369820,11.60106265,86.199,86.165,11.60564034]